bitfinex/quotes_BTCUSD_20250903
["timestamp","ask_amount","ask_price","bid_price","bid_amount"]
[1756896947616,0.77285042,111570.0,111560.0,0.33163572]
[1756896949025,0.62245042,111570.0,111560.0,0.33163572]
[1756896949258,0.77277042,111570.0,111560.0,0.33163572]
[1756896949675,0.026947,111570.0,111560.0,0.74457506]
[1756896949880,0.33254367,111580.0,111570.0,0.17925965]
[1756896950055,0.33464367,111580.0,111570.0,0.17925965]
[1756896950286,0.33464367,111580.0,111570.0,0.59023899]
[1756896950287,0.00508,111580.0,111570.0,0.59023899]
[1756896950719,0.00508,111580.0,111570.0,0.61718127]
[1756896950920,0.00508,111580.0,111570.0,0.61914127]
[1756896951120,0.00512664,111580.0,111570.0,0.61914127]
[1756896951326,0.18437023,111580.0,111570.0,0.61914127]
[1756896951523,0.59534957,111580.0,111570.0,0.02694228]
[1756896952913,0.59534957,111580.0,111570.0,0.20620193]
[1756896953121,0.59534957,111580.0,111570.0,0.02694228]
[1756896954058,0.59534957,111580.0,111570.0,0.20620193]
[1756896954925,0.59534957,111580.0,111570.0,0.02694228]
[1756896955653,0.18437023,111580.0,111570.0,0.02694228]
[1756896955867,0.59534957,111580.0,111570.0,0.02694228]
[1756896956046,0.59534957,111580.0,111570.0,0.20620193]
[1756896956597,0.59534957,111580.0,111570.0,0.02694228]
[1756896958909,0.59534957,111580.0,111570.0,0.20620193]
[1756896959108,0.59534957,111580.0,111570.0,0.02694228]
[1756896961262,1.00632891,111580.0,111570.0,0.02694228]
[1756896961910,0.17927572,111560.0,111550.0,0.07354631]
[1756896962122,0.17929179,111550.0,111540.0,0.32950787]
[1756896962351,0.59535113,111550.0,111540.0,0.02694746]
[1756896962568,0.17930787,111540.0,111530.0,0.25286787]
[1756896962777,0.59028721,111540.0,111530.0,0.37173398]
[1756896962985,0.59536721,111540.0,111530.0,0.37173398]
[1756896963200,0.74552721,111540.0,111530.0,0.37369398]
[1756896963514,0.74552721,111540.0,111530.0,0.20823168]
[1756896963735,0.74552721,111540.0,111530.0,0.21027168]
[1756896963956,0.74552721,111540.0,111530.0,0.21041155]
[1756896964563,0.56621934,111540.0,111530.0,0.21041155]
[1756896965081,0.56621934,111540.0,111530.0,0.21341155]
[1756896966517,0.41605934,111540.0,111530.0,0.21341155]
[1756896966726,0.1552,111540.0,111530.0,0.21341155]
[1756896970345,0.15335,111550.0,111540.0,0.18430787]
[1756896970557,0.44115934,111560.0,111550.0,0.17929179]
[1756896970756,0.44313934,111560.0,111550.0,0.17929179]
[1756896970933,0.59321934,111560.0,111550.0,0.17929179]
[1756896971886,0.59325934,111560.0,111550.0,0.17929179]
[1756896972068,0.59325934,111560.0,111550.0,0.18029179]
[1756896972523,0.59321934,111560.0,111550.0,0.18129179]
[1756896974839,0.44313934,111560.0,111550.0,0.18129179]
[1756896974984,0.59317934,111560.0,111550.0,0.18129179]
[1756896975363,0.44313934,111560.0,111550.0,0.18129179]
[1756896975597,0.59317934,111560.0,111550.0,0.18129179]
[1756896978622,1.61535039,111560.0,111550.0,0.002]
[1756896978838,2.02632973,111560.0,111550.0,0.18129179]
[1756896979053,1.61535039,111560.0,111550.0,0.18129179]
[1756896979260,1.28603467,111560.0,111550.0,0.18129179]
[1756896979480,0.79339171,111560.0,111550.0,0.18029179]
[1756896979687,1.34142909,111560.0,111550.0,0.18029179]
[1756896980317,1.34142909,111560.0,111550.0,0.17929179]
[1756896981722,1.77832909,111560.0,111550.0,0.17929179]
[1756896982780,1.77832909,111560.0,111540.0,0.17930642]
[1756896982977,0.54803738,111550.0,111540.0,0.17930642]
[1756896983180,0.70126738,111550.0,111540.0,0.17930642]
[1756896983416,0.70324738,111550.0,111540.0,0.17930642]
[1756896983625,0.73019961,111550.0,111540.0,0.17930642]
[1756896983996,0.73015961,111550.0,111540.0,0.18130642]
[1756896984190,0.18212223,111550.0,111540.0,0.18230642]
[1756896984405,0.73015961,111550.0,111540.0,0.18230642]
[1756896984697,0.73015961,111550.0,111540.0,0.18030642]
[1756896984919,0.73015961,111550.0,111540.0,0.18130642]
[1756896985564,0.73015961,111550.0,111540.0,0.18330642]
[1756896985775,0.03216223,111550.0,111540.0,0.18330642]
[1756896985993,0.14996,111550.0,111540.0,0.18330642]
[1756896986228,1.50523643,111560.0,111550.0,0.17929179]
[1756896986442,1.50721643,111560.0,111550.0,0.17929179]
[1756896986649,1.16721643,111560.0,111550.0,0.17929179]
[1756896986862,1.16721643,111560.0,111550.0,0.18129179]
[1756896987263,0.46905905,111560.0,111550.0,0.18129179]
[1756896987480,0.61719905,111560.0,111550.0,0.18129179]
[1756896988099,0.61917905,111560.0,111550.0,0.18129179]
[1756896988592,0.44211,111560.0,111550.0,0.18129179]
[1756896988867,0.58702,111560.0,111550.0,0.18129179]
[1756896989047,0.58702,111560.0,111550.0,0.20823927]
[1756896989286,0.59025,111560.0,111550.0,0.20823927]
[1756896989463,0.59025,111560.0,111550.0,0.20923927]
[1756896989871,0.59223,111560.0,111550.0,0.20923927]
[1756896990286,0.59223,111560.0,111550.0,0.21023927]
[1756896990916,0.59025,111560.0,111550.0,0.21023927]
[1756896991173,0.59223,111560.0,111550.0,0.21023927]
[1756896991822,0.58702,111560.0,111550.0,0.21023927]
[1756896992416,0.59025,111560.0,111550.0,0.21023927]
[1756896993871,0.59223,111560.0,111550.0,0.21023927]
[1756896995067,0.4369,111560.0,111550.0,0.21023927]
[1756896995223,0.58694,111560.0,111550.0,0.21023927]
[1756896996047,0.59017,111560.0,111550.0,0.21023927]
[1756896996377,0.58694,111560.0,111550.0,0.21023927]
[1756896997002,0.59017,111560.0,111550.0,0.21023927]
[1756896997185,0.44013,111560.0,111550.0,0.21023927]
[1756896997798,0.4369,111560.0,111550.0,0.30215526]
[1756896998361,0.4369,111560.0,111550.0,0.45215526]
[1756896998636,0.44013,111560.0,111550.0,0.45215526]
[1756896999518,0.82609747,111580.0,111570.0,0.17925965]
[1756896999722,0.79590367,111580.0,111570.0,0.17925965]
[1756896999936,0.97809726,111580.0,111570.0,0.17925965]
[1756897000139,0.79885367,111580.0,111570.0,0.17925965]
[1756897000354,0.03185629,111580.0,111570.0,0.17925965]
[1756897000536,0.15499,111580.0,111570.0,0.18122965]
[1756897000723,0.15503664,111580.0,111570.0,0.17925965]
[1756897000940,0.15503664,111580.0,111570.0,0.20620195]
[1756897001263,0.15703664,111580.0,111570.0,0.20817195]
[1756897001693,0.15603664,111580.0,111570.0,0.20817195]
[1756897002108,0.00495664,111580.0,111570.0,0.20817195]
[1756897002295,0.15507664,111580.0,111570.0,0.20917195]
[1756897002606,0.15507664,111580.0,111570.0,0.20817195]
[1756897003074,0.15507664,111580.0,111570.0,0.21117195]
[1756897003593,0.15507664,111580.0,111570.0,0.18422965]
[1756897003801,0.15507664,111580.0,111570.0,0.18622965]
[1756897006151,0.00495664,111580.0,111570.0,0.18622965]
[1756897006459,4.664e-05,111580.0,111570.0,0.82618302]
[1756897006683,4.664e-05,111580.0,111570.0,0.82743302]
[1756897006899,4.664e-05,111580.0,111570.0,0.87530822]
[1756897007270,4.664e-05,111580.0,111570.0,0.47735084]
[1756897007494,4.664e-05,111580.0,111570.0,1.02538822]
[1756897009361,4.664e-05,111580.0,111570.0,1.02542822]
[1756897010222,4.664e-05,111580.0,111570.0,1.42542822]
[1756897010752,4.664e-05,111580.0,111570.0,1.27530822]
[1756897010993,4.664e-05,111580.0,111570.0,0.87614084]
[1756897011222,4.664e-05,111580.0,111570.0,1.42542822]
[1756897011936,4.664e-05,111580.0,111570.0,1.27530822]
[1756897012136,4.664e-05,111580.0,111570.0,1.42538822]
[1756897015115,4.664e-05,111580.0,111570.0,1.27530822]
[1756897015363,4.664e-05,111580.0,111570.0,1.42534822]
[1756897016005,1e-08,111580.0,111570.0,1.42534822]
[1756897016897,1e-08,111580.0,111570.0,1.42034822]
[1756897017113,1e-08,111580.0,111570.0,1.78873822]
[1756897017343,1e-08,111580.0,111570.0,1.79173822]
[1756897018034,1e-08,111580.0,111570.0,1.84173822]
[1756897018460,1e-08,111580.0,111570.0,1.88473822]
[1756897018922,1e-08,111580.0,111570.0,1.89273822]
[1756897019163,1e-08,111580.0,111570.0,1.88873822]
[1756897019409,1e-08,111580.0,111570.0,1.88473822]
[1756897019606,1e-08,111580.0,111570.0,1.89673822]
[1756897019855,1e-08,111580.0,111570.0,1.88973822]
[1756897020150,1e-08,111580.0,111570.0,1.89573822]
[1756897020366,1e-08,111580.0,111570.0,2.5382756]
[1756897025580,1e-08,111580.0,111570.0,2.41134368]
[1756897026217,1e-08,111580.0,111570.0,3.08054368]
[1756897026411,1e-08,111580.0,111570.0,3.03054368]
[1756897026645,1e-08,111580.0,111570.0,3.08054368]
[1756897027203,1e-08,111580.0,111570.0,3.03054368]
[1756897029811,1e-08,111580.0,111570.0,2.88050368]
[1756897030009,1e-08,111580.0,111570.0,3.0073956]
[1756897030416,1e-08,111580.0,111570.0,2.8574356]
[1756897030631,1e-08,111580.0,111570.0,3.0074356]
[1756897030828,1e-08,111580.0,111570.0,2.8574356]
[1756897031043,1e-08,111580.0,111570.0,3.0074356]
[1756897032100,1e-08,111580.0,111570.0,2.7382356]
[1756897033599,1e-08,111580.0,111570.0,2.7381956]
[1756897037366,1e-08,111580.0,111570.0,2.7138056]
[1756897037822,1e-08,111580.0,111570.0,2.5638456]
[1756897038025,1e-08,111580.0,111570.0,2.8330456]
[1756897038214,1e-08,111580.0,111570.0,2.9829256]
[1756897038645,1e-08,111580.0,111570.0,3.1982056]
[1756897041753,1e-08,111580.0,111570.0,4.41363372]
[1756897041970,0.00304001,111580.0,111570.0,2.98169228]
[1756897042171,0.00500001,111580.0,111570.0,3.12956228]
[1756897042384,0.00500001,111580.0,111570.0,3.13156228]
[1756897042537,0.18936502,111630.0,111610.0,0.17919541]
[1756897042783,0.18941166,111630.0,111620.0,0.90004582]
[1756897042966,0.19137166,111630.0,111620.0,0.90004582]
[1756897043432,0.21506166,111630.0,111620.0,0.90004582]
[1756897043767,0.21506166,111630.0,111620.0,0.92697231]
[1756897044183,0.21506166,111630.0,111620.0,0.92797231]
[1756897044646,0.21810166,111630.0,111620.0,0.92797231]
[1756897045044,0.21810166,111630.0,111620.0,0.51774183]
[1756897045265,0.21810166,111630.0,111620.0,0.92797231]
[1756897045465,0.21810166,111630.0,111620.0,0.92897231]
[1756897045849,0.21810166,111630.0,111620.0,0.33956248]
[1756897046056,0.62833214,111630.0,111620.0,0.33952248]
[1756897046262,0.62833214,111630.0,111620.0,0.31259599]
[1756897049468,0.62833214,111630.0,111620.0,0.24371599]
[1756897049720,1.03856262,111630.0,111620.0,0.002]
[1756897049944,0.65608311,111630.0,111620.0,0.1518]
[1756897050352,0.6476836,111630.0,111620.0,0.1518]
[1756897050531,0.62833214,111630.0,111620.0,0.1518]
[1756897051106,0.62833214,111630.0,111620.0,0.002]
[1756897056445,0.21810166,111630.0,111620.0,0.002]
[1756897056642,0.62833214,111630.0,111620.0,0.002]
[1756897057563,1.03856262,111630.0,111620.0,0.002]
[1756897058631,0.62833214,111630.0,111620.0,0.002]
[1756897058843,0.19441166,111630.0,111620.0,0.002]
[1756897059050,0.60464214,111630.0,111620.0,0.002]
[1756897061780,0.19441166,111630.0,111620.0,0.002]
[1756897062000,0.60464214,111630.0,111620.0,0.002]
[1756897064738,1.01487262,111630.0,111620.0,0.002]
[1756897067026,0.19441166,111630.0,111620.0,0.002]
[1756897067440,1.01487262,111630.0,111620.0,0.002]
[1756897075442,1.04180537,111630.0,111620.0,0.002]
[1756897076134,1.19252537,111630.0,111620.0,0.002]
[1756897077504,1.19264537,111630.0,111620.0,0.002]
[1756897077736,1.16571262,111630.0,111620.0,0.002]
[1756897094702,0.60160214,111630.0,111620.0,0.0072]
[1756897094922,0.59964214,111630.0,111620.0,0.0072]
[1756897095596,0.60160214,111630.0,111620.0,0.00408]
[1756897096023,1.01183262,111630.0,111620.0,0.00408]
[1756897096244,1.01478262,111630.0,111620.0,0.18325935]
[1756897097138,0.60455214,111630.0,111620.0,0.18325935]
[1756897097779,0.60455214,111630.0,111620.0,0.00408]
[1756897097985,0.19432166,111630.0,111620.0,0.00408]
[1756897098192,0.60455214,111630.0,111620.0,0.00408]
[1756897100963,0.19432166,111630.0,111620.0,0.00408]
[1756897101167,0.60455214,111630.0,111620.0,0.00408]
[1756897101818,0.19432166,111630.0,111620.0,0.00408]
[1756897102022,0.60455214,111630.0,111620.0,0.00408]
[1756897102834,0.19432166,111630.0,111620.0,0.00408]
[1756897103122,0.60455214,111630.0,111620.0,0.00408]
[1756897103513,0.74155976,111630.0,111620.0,0.00408]
[1756897103853,0.19432166,111630.0,111620.0,0.00408]
[1756897104040,0.74155976,111630.0,111620.0,0.00408]
[1756897104834,0.73860976,111630.0,111620.0,0.00408]
[1756897105041,0.74155976,111630.0,111620.0,0.00408]
[1756897105522,0.74155976,111630.0,111620.0,0.002]
[1756897109305,0.19432166,111630.0,111620.0,0.002]
[1756897109512,0.74155976,111630.0,111620.0,0.002]
[1756897112473,0.19432166,111630.0,111620.0,0.002]
[1756897112679,0.74155976,111630.0,111620.0,0.002]
[1756897113559,0.19432166,111630.0,111620.0,0.002]
[1756897113776,0.74155976,111630.0,111620.0,0.002]
[1756897119253,0.73860976,111630.0,111620.0,0.00413]
[1756897119386,0.19137166,111630.0,111620.0,0.00413]
[1756897119592,0.74179976,111630.0,111620.0,0.00413]
[1756897119869,0.19456166,111630.0,111620.0,0.00413]
[1756897120015,0.74179976,111630.0,111620.0,0.00413]
[1756897120630,0.74179976,111630.0,111620.0,0.002]
[1756897122061,0.89191976,111630.0,111620.0,0.002]
[1756897124380,0.9188499,111630.0,111620.0,0.002]
[1756897124610,0.7687299,111630.0,111620.0,0.002]
[1756897126413,0.9178099,111630.0,111620.0,0.002]
[1756897133145,0.9177699,111630.0,111620.0,0.002]
[1756897133355,0.3705318,111630.0,111620.0,0.002]
[1756897133564,0.9177699,111630.0,111620.0,0.002]
[1756897136690,0.03813678,111630.0,111620.0,0.18330935]
[1756897136915,0.58341488,111630.0,111620.0,0.33643935]
[1756897137317,0.76454818,111630.0,111620.0,0.18643935]
[1756897138043,0.76454818,111630.0,111620.0,0.18330935]
[1756897138720,0.76454818,111630.0,111620.0,0.18643935]
[1756897138910,0.76454818,111630.0,111620.0,0.18330935]
[1756897139315,0.91450818,111630.0,111620.0,0.18330935]
[1756897140384,0.91769818,111630.0,111620.0,0.18330935]
[1756897141334,0.76773818,111630.0,111620.0,0.18330935]
[1756897143772,0.22050008,111630.0,111620.0,0.18330935]
[1756897143999,0.76773818,111630.0,111620.0,0.18330935]
[1756897149134,0.76773818,111630.0,111620.0,0.00413]
[1756897149380,0.91769818,111630.0,111620.0,0.00413]
[1756897149754,0.37046008,111630.0,111620.0,0.18330935]
[1756897149961,0.91769818,111630.0,111620.0,0.18330935]
[1756897151658,0.91769818,111630.0,111620.0,0.00413]
[1756897151869,0.91769818,111630.0,111620.0,0.18330935]
[1756897152209,0.91769818,111630.0,111620.0,0.00413]
[1756897152621,0.91769818,111630.0,111620.0,0.002]
[1756897153290,1.25769818,111630.0,111620.0,0.002]
[1756897153671,1.25769818,111630.0,111620.0,0.001]
[1756897154113,0.17921146,111600.0,111590.0,0.26475037]
[1756897154327,0.72842956,111600.0,111590.0,0.535581]
[1756897155014,0.72842956,111600.0,111590.0,0.46203469]
[1756897155309,0.72842956,111600.0,111590.0,0.45897469]
[1756897156560,0.72842956,111600.0,111590.0,0.46203469]
[1756897156770,0.72842956,111600.0,111590.0,0.46403469]
[1756897157595,0.73746551,111600.0,111590.0,0.46403469]
[1756897157892,0.74048551,111600.0,111590.0,0.46297469]
[1756897158528,0.73746551,111600.0,111590.0,0.46297469]
[1756897159261,0.20915005,111610.0,111600.0,0.17921146]
[1756897159470,0.02693464,111610.0,111600.0,0.18429146]
[1756897159682,0.57417274,111610.0,111600.0,0.18429146]
[1756897160516,0.57417274,111610.0,111600.0,0.18629146]
[1756897161327,0.3381129,111620.0,111610.0,0.17919541]
[1756897161328,0.32915394,111620.0,111610.0,0.17919541]
[1756897161532,0.5472381,111620.0,111610.0,0.33423541]
[1756897161736,0.57416981,111620.0,111610.0,0.33423541]
[1756897161915,0.90661573,111630.0,111620.0,0.17917935]
[1756897162134,0.36135763,111630.0,111610.0,0.32915541]
[1756897162352,0.72943745,111620.0,111610.0,0.14996]
[1756897162562,0.72943745,111620.0,111610.0,0.15198]
[1756897162563,0.73141745,111620.0,111610.0,0.15198]
[1756897162776,0.18417935,111620.0,111610.0,0.33117541]
[1756897162974,0.72839745,111620.0,111610.0,0.33423541]
[1756897163191,0.00198,111620.0,111610.0,0.33423541]
[1756897163393,0.5492181,111620.0,111610.0,0.33423541]
[1756897163603,0.00198,111620.0,111610.0,0.33423541]
[1756897163819,1.00213685,111620.0,111610.0,0.18427541]
[1756897164026,1.00213685,111620.0,111610.0,0.33471541]
[1756897164783,1.00213685,111620.0,111610.0,0.33265541]
[1756897164983,1.00213685,111620.0,111610.0,0.33571541]
[1756897166181,1.00213685,111620.0,111610.0,0.33365541]
[1756897167331,1.00515685,111620.0,111610.0,0.33365541]
[1756897170139,1.00515685,111620.0,111610.0,0.33163541]
[1756897172457,0.18417935,111620.0,111610.0,0.33365541]
[1756897172664,1.00515685,111620.0,111610.0,0.33163541]
[1756897181733,1.00515685,111620.0,111610.0,0.33371541]
[1756897181943,1.00515685,111620.0,111610.0,0.33163541]
[1756897182868,0.23651934,111630.0,111610.0,0.33691541]
[1756897183092,0.23651934,111630.0,111620.0,0.17917935]
[1756897183304,1.19783868,111630.0,111620.0,0.18125935]
[1756897183539,0.78734993,111630.0,111620.0,0.18125935]
[1756897183953,0.60985822,111630.0,111620.0,0.18125935]
[1756897185171,0.61308822,111630.0,111620.0,0.18125935]
[1756897186524,0.76372822,111630.0,111620.0,0.18125935]
[1756897186723,0.76049822,111630.0,111620.0,0.18125935]
[1756897186948,0.76049822,111630.0,111620.0,0.18445935]
[1756897188000,0.43069492,111630.0,111620.0,0.18445935]
[1756897188256,0.42170539,111630.0,111620.0,0.18445935]
[1756897189815,0.60086869,111630.0,111620.0,0.18445935]
[1756897190235,0.60086869,111630.0,111620.0,0.18125935]
[1756897190441,0.42170539,111630.0,111620.0,0.18125935]
[1756897190626,0.42170539,111630.0,111620.0,0.18445935]
[1756897194338,0.42170539,111630.0,111620.0,0.18125935]
[1756897196547,0.42493539,111630.0,111620.0,0.18125935]
[1756897196787,0.42170539,111630.0,111620.0,0.18125935]
[1756897197869,0.42493539,111630.0,111620.0,0.18125935]
[1756897198064,0.42170539,111630.0,111620.0,0.18125935]
[1756897198339,0.42170539,111630.0,111620.0,0.18445935]
[1756897198542,0.42170539,111630.0,111620.0,0.18125935]
[1756897198742,0.42493539,111630.0,111620.0,0.18125935]
[1756897199676,0.42493539,111630.0,111620.0,0.18225935]
[1756897200337,0.60409869,111630.0,111620.0,0.001]
[1756897200545,0.60409869,111630.0,111620.0,0.18117935]
[1756897200752,0.19360994,111630.0,111620.0,0.002]
[1756897200962,0.60409869,111630.0,111620.0,0.18117935]
[1756897201376,0.19360994,111630.0,111620.0,0.18117935]
[1756897201585,0.75461869,111630.0,111620.0,0.18117935]
[1756897202614,0.57545539,111630.0,111620.0,0.002]
[1756897208564,0.42493539,111630.0,111620.0,0.002]
[1756897208779,0.01121664,111630.0,111620.0,0.00702]
[1756897208999,0.00924664,111630.0,111620.0,0.10117573]
[1756897209215,0.00924664,111630.0,111620.0,0.92215323]
[1756897209428,0.00924664,111630.0,111620.0,0.09893599]
[1756897209853,0.00924664,111630.0,111620.0,0.53635082]
[1756897210079,0.00924664,111630.0,111620.0,0.12586207]
[1756897210299,0.01134664,111630.0,111620.0,0.12586207]
[1756897210513,0.41973539,111630.0,111620.0,0.27678207]
[1756897210730,0.00924664,111630.0,111620.0,0.27678207]
[1756897213121,0.00924664,111630.0,111620.0,0.68727082]
[1756897214656,0.00924664,111630.0,111620.0,0.27678207]
[1756897214898,0.01454664,111630.0,111620.0,0.12084207]
[1756897215147,0.01454664,111630.0,111620.0,0.27384207]
[1756897215595,0.01134664,111630.0,111620.0,0.27384207]
[1756897215798,0.01134664,111630.0,111620.0,0.27678207]
[1756897216054,0.00924664,111630.0,111620.0,0.68727082]
[1756897217880,0.01134664,111630.0,111620.0,0.12586207]
[1756897218111,0.01134664,111630.0,111620.0,0.27384207]
[1756897219015,0.01454664,111630.0,111620.0,0.27172207]
[1756897219220,0.42503539,111630.0,111620.0,0.002]
[1756897219984,0.01454664,111630.0,111620.0,0.002]
[1756897220204,0.42503539,111630.0,111620.0,0.002]
[1756897221950,0.57599539,111630.0,111620.0,0.002]
[1756897222776,0.6029278,111630.0,111620.0,0.002]
[1756897223601,1.01341655,111630.0,111620.0,0.002]
[1756897224165,1.35341655,111630.0,111620.0,0.002]
[1756897225648,1.07982539,111630.0,111620.0,0.002]
[1756897226694,1.17174138,111630.0,111620.0,0.002]
[1756897228599,1.17124138,111630.0,111620.0,0.002]
[1756897229039,1.2154802,111630.0,111620.0,0.002]
[1756897229705,0.51713386,111630.0,111620.0,0.002]
[1756897230021,1.1922202,111630.0,111620.0,0.001]
[1756897230877,1.1932202,111630.0,111620.0,0.001]
[1756897231302,0.34,111620.0,111590.0,0.07648631]
[1756897231544,0.69838634,111610.0,111590.0,0.07648631]
[1756897231726,0.70368634,111610.0,111600.0,0.00208]
[1756897232162,0.73062417,111610.0,111590.0,0.00294]
[1756897232712,0.54738634,111600.0,111590.0,0.00294]
[1756897232951,0.73062417,111610.0,111580.0,0.2229]
[1756897233220,0.72852417,111610.0,111590.0,0.00208]
[1756897233491,0.0021,111600.0,111590.0,0.00208]
[1756897233745,0.0021,111600.0,111590.0,0.00308]
[1756897234013,0.0021,111600.0,111590.0,0.00208]
[1756897234273,0.72852417,111610.0,111590.0,0.00502]
[1756897234525,0.72864417,111610.0,111590.0,0.00502]
[1756897234816,0.72864417,111610.0,111590.0,0.00702]
[1756897235079,0.0021,111600.0,111590.0,0.00702]
[1756897235354,0.72864417,111610.0,111590.0,0.00502]
[1756897235614,0.72864417,111610.0,111590.0,0.00602]
[1756897235864,0.72864417,111610.0,111590.0,0.00802]
[1756897236360,0.18125783,111610.0,111590.0,0.00802]
[1756897236612,0.72864417,111610.0,111590.0,0.00602]
[1756897236855,0.02693783,111610.0,111600.0,0.00294]
[1756897237064,1.03850634,111620.0,111600.0,0.00502]
[1756897237291,1.06544185,111620.0,111600.0,0.00502]
[1756897237544,1.06864185,111620.0,111600.0,0.00502]
[1756897238051,1.06864185,111620.0,111600.0,0.00602]
[1756897238454,0.0021,111610.0,111600.0,0.00208]
[1756897238652,1.06864185,111620.0,111600.0,0.00512]
[1756897238994,1.06864185,111620.0,111600.0,0.00612]
[1756897239882,1.06864185,111620.0,111600.0,0.00512]
[1756897240538,1.06864185,111620.0,111600.0,0.00612]
[1756897240950,1.06864185,111620.0,111600.0,0.00512]
[1756897241370,0.00197,111610.0,111600.0,0.00512]
[1756897242624,0.00197,111610.0,111600.0,0.00612]
[1756897243426,1.06860185,111620.0,111600.0,0.00712]
[1756897244291,1.06860185,111620.0,111600.0,0.00612]
[1756897244518,1.06536185,111620.0,111600.0,0.00612]
[1756897244818,0.00508,111610.0,111600.0,0.001]
[1756897245275,0.00508,111610.0,111590.0,0.24599599]
[1756897245747,0.00508,111610.0,111600.0,0.00196]
[1756897245965,0.00197,111610.0,111600.0,0.00196]
[1756897246406,0.00197,111610.0,111600.0,0.00296]
[1756897246546,0.00197,111610.0,111600.0,0.00396]
[1756897248081,0.00508,111610.0,111600.0,0.00396]
[1756897249401,0.00508,111610.0,111600.0,0.002]
[1756897250059,0.00508,111610.0,111600.0,0.00396]
[1756897250496,0.00197,111610.0,111600.0,0.00396]
[1756897251354,0.00197,111610.0,111600.0,0.007]
[1756897253121,0.91743185,111620.0,111600.0,0.007]
[1756897253344,0.15088,111620.0,111600.0,0.007]
[1756897253578,0.15088,111620.0,111610.0,0.00304]
[1756897253830,0.18967162,111630.0,111610.0,0.005]
[1756897254078,0.00874664,111630.0,111610.0,0.55238634]
[1756897254310,0.00874664,111630.0,111620.0,0.00304]
[1756897254580,0.00874664,111630.0,111620.0,0.005]
[1756897255164,0.01071664,111630.0,111620.0,0.005]
[1756897256229,0.01271664,111630.0,111620.0,0.005]
[1756897256429,0.01171664,111630.0,111620.0,0.005]
[1756897256698,0.01071664,111630.0,111620.0,0.005]
[1756897257090,0.01071664,111630.0,111620.0,0.006]
[1756897257272,0.01071664,111630.0,111620.0,0.00296]
[1756897258863,0.01071664,111630.0,111620.0,0.00396]
[1756897259183,0.01382664,111630.0,111620.0,0.00396]
[1756897259614,0.01071664,111630.0,111620.0,0.007]
[1756897259791,0.01071664,111630.0,111620.0,0.00396]
[1756897260011,0.01382664,111630.0,111620.0,0.00396]
[1756897260459,0.01071664,111630.0,111620.0,0.00396]
[1756897260676,0.01071664,111630.0,111620.0,0.007]
[1756897260884,0.01071664,111630.0,111620.0,0.00396]
[1756897261597,0.01382664,111630.0,111620.0,0.00396]
[1756897265610,0.01382664,111630.0,111620.0,0.002]
[1756897271826,0.56121298,111630.0,111620.0,0.002]
[1756897273952,0.56121298,111630.0,111620.0,0.00395]
[1756897274357,0.01071664,111630.0,111620.0,0.00395]
[1756897274602,0.00874664,111630.0,111620.0,0.0069]
[1756897274844,0.00874664,111630.0,111620.0,0.55428634]
[1756897275083,0.00874664,111630.0,111620.0,0.64620233]
[1756897275563,0.00874664,111630.0,111620.0,0.09881599]
[1756897275807,0.00874664,111630.0,111620.0,0.10105573]
[1756897277822,0.00874664,111630.0,111620.0,0.24933599]
[1756897279027,0.00874664,111630.0,111620.0,0.79672233]
[1756897280684,0.00874664,111630.0,111620.0,0.24933599]
[1756897280909,0.00874664,111630.0,111620.0,0.81743196]
[1756897282871,0.00874664,111630.0,111620.0,1.21743196]
[1756897287071,0.00874664,111630.0,111620.0,1.06691196]
[1756897287266,0.00874664,111630.0,111620.0,1.21731196]
[1756897287515,0.00874664,111630.0,111620.0,1.4903764]
[1756897293415,0.00874664,111630.0,111620.0,1.88406061]
[1756897293817,0.00874664,111630.0,111620.0,2.28406061]
[1756897294025,0.00874664,111630.0,111620.0,1.05338444]
[1756897294250,0.00874664,111630.0,111620.0,2.28406061]
[1756897294475,0.00874664,111630.0,111620.0,2.28306061]
[1756897294902,0.00874664,111630.0,111620.0,2.28706061]
[1756897295279,0.00874664,111630.0,111620.0,2.28606061]
[1756897295486,0.00874664,111630.0,111620.0,2.29106061]
[1756897307706,0.00874664,111630.0,111620.0,3.62173678]
[1756897308324,0.00874664,111630.0,111620.0,3.47133678]
[1756897308529,0.00874664,111630.0,111620.0,3.62197678]
[1756897308723,0.00874664,111630.0,111620.0,3.61697678]
[1756897309250,0.00974664,111630.0,111620.0,3.62597678]
[1756897309449,0.00974664,111630.0,111620.0,1.00941444]
[1756897309639,0.00974664,111630.0,111620.0,3.45281678]
[1756897309848,0.00974664,111630.0,111620.0,3.59941678]
[1756897310052,0.00974664,111630.0,111620.0,3.59937678]
[1756897310254,0.00974664,111630.0,111620.0,3.60437678]
[1756897314456,0.00974664,111630.0,111620.0,3.45381678]
[1756897314862,0.00974664,111630.0,111620.0,2.37362061]
[1756897315066,0.00974664,111630.0,111620.0,3.60429678]
[1756897316335,0.00974664,111630.0,111620.0,2.37362061]
[1756897317996,0.00974664,111630.0,111620.0,2.32362061]
[1756897318455,0.00974664,111630.0,111620.0,2.37362061]
[1756897320084,0.00974664,111630.0,111620.0,2.32362061]
[1756897320278,0.00974664,111630.0,111620.0,2.37362061]
[1756897320532,0.00974664,111630.0,111620.0,2.03362061]
[1756897320751,0.00974664,111630.0,111620.0,2.37362061]
[1756897321216,0.00974664,111630.0,111620.0,3.55429678]
[1756897321429,0.00974664,111630.0,111620.0,3.66696457]
[1756897322537,0.01503664,111630.0,111620.0,2.3812284]
[1756897322769,0.01503664,111630.0,111620.0,1.85833522]
[1756897322936,0.01503664,111630.0,111620.0,2.26856061]
[1756897323138,0.01503664,111630.0,111620.0,1.86856061]
[1756897324916,0.01503664,111630.0,111620.0,1.86852061]
[1756897327144,0.01503664,111630.0,111620.0,2.26852061]
[1756897327686,0.01503664,111630.0,111620.0,2.27058061]
[1756897328026,0.01503664,111630.0,111620.0,2.26852061]
[1756897328384,0.01503664,111630.0,111620.0,1.85829522]
[1756897328987,0.01503664,111630.0,111620.0,2.26852061]
[1756897329802,0.01503664,111630.0,111620.0,1.85829522]
[1756897330701,0.00974664,111630.0,111620.0,2.27352061]
[1756897331799,0.00974664,111630.0,111620.0,3.55419678]
[1756897332054,0.00974664,111630.0,111620.0,3.66686457]
[1756897333624,0.00974664,111630.0,111620.0,3.55419678]
[1756897336347,0.00974664,111630.0,111620.0,3.62303678]
[1756897336768,0.00974664,111630.0,111620.0,3.67303678]
[1756897337355,0.00974664,111630.0,111620.0,3.83399077]
[1756897338318,0.00077804,111630.0,111620.0,3.83399077]
[1756897338741,0.0002,111640.0,111630.0,0.12093882]
[1756897338950,0.00066631,111640.0,111630.0,3.16968669]
[1756897339157,0.00066631,111640.0,111630.0,1.93873098]
[1756897339365,0.00066631,111640.0,111630.0,2.33869098]